Cogmind - Beta 13 @@@ ROGUE MODE // 2024.05.06 @ 00:20:41 Player: Exceptionally Mediocre Result: Destroyed by G-34 Mercenary with Small Laser Performance ------------- Evolutions (0) 0 Regions Visited (1) 200 Robots Destroyed (14) 70 Value Destroyed (250) 250 Prototype IDs (0) 0 Alien Tech Used (0) 0 Bonus (0) 0 TOTAL SCORE: 520 Bonus ------- None Cogmind --------- Core Integrity 0/250 Matter 263/300 Energy 125/125 System Corruption 0% Temperature Cool (6) Movement Walking (400) Ox4 Location -10/Materials Parts ------- > --- POWER (1) -------- Light Ion Engine > --- PROPULSION (2) --- Aluminum Leg > --- UTILITY (2) ------ Heat Sink High-capacity Storage Unit > --- WEAPON (2) ------- Light Assault Rifle Light Assault Rifle > --- INVENTORY (20) --- Ion Engine Light Nuclear Core Medium Matter Pod (100) Beam Cannon Light Cannon Grenade Launcher Hammer Hammer Peak State ------------ > --- POWER ------------ Light Ion Engine > --- PROPULSION ------- Aluminum Leg Aluminum Leg > --- UTILITY ---------- Heat Sink Small Storage Unit > --- WEAPON ----------- Beam Cannon Light Assault Rifle > --- INVENTORY -------- Light Nuclear Core Flight Unit Medium Matter Pod Light Cannon Light Cannon Grenade Launcher Hammer Hammer [Rating: 8] Favorites ----------- Power Light Ion Engine Engine Light Ion Engine Propulsion Aluminum Leg Treads Light Treads Leg Aluminum Leg Utility Small Storage Unit Device Heat Sink Storage Small Storage Unit Weapon Light Assault Rifle Energy Gun Medium Laser Energy Cannon Beam Cannon Ballistic Gun Light Assault Rifle Launcher Grenade Launcher Impact Weapon Hammer Build | -11 -10 ------- Run | Yrd Mat Slots Evolved . | . . Power . | . . Propulsion . | . . Utility . | . . Weapon . | . . Parts Attached 17 | 6 11 Power 2 | 1 1 Engine 2 | 1 1 Core . | . . Reactor . | . . Propulsion 4 | 2 2 Treads 2 | 2 . Leg 2 | . 2 Wheel . | . . Hover . | . . Flight . | . . Utility 3 | 1 2 Device 1 | . 1 Storage 2 | 1 1 Processor . | . . Hackware . | . . Protection . | . . Artifact . | . . Weapon 8 | 2 6 Energy Gun 2 | 2 . Energy Cannon 1 | . 1 Ballistic Gun 3 | . 3 Ballistic Cannon . | . . Launcher 1 | . 1 Special Weapon . | . . Impact Weapon 1 | . 1 Slashing Weapon . | . . Piercing Weapon . | . . Special Melee Weapon . | . . Unidentified Prototypes . | . . Parts Lost 5 | . 5 Power 1 | . 1 Propulsion 3 | . 3 Utility . | . . Weapon 1 | . 1 Highest Loss Streak 4 | . 4 To Critical Strikes . | . . Average Slot Usage (%) 88 | . 88 Engine 13 | . 13 Treads 8 | . 8 Leg 17 | . 17 Device 6 | . 6 Storage 14 | . 14 Energy Gun 7 | . 7 Energy Cannon 6 | . 6 Ballistic Gun 11 | . 11 Impact Weapon 2 | . 2 Naked Turns . | . . Heaviest Build 47 | 13 47 Greatest Support 40 | 40 40 Greatest Overweight (x) 3 | . 3 Average Overweight (x) . | . . Largest Inventory Capacity 20 | 8 20 Average Capacity 9 | 6 9 Most Carried 8 | 2 8 Average Carried 5 | 1 6 Final Capacity 20 | 8 20 Final Carried 8 | 2 8 Class Distribution -------------------- 58% | Mutant 41% | Scavenger-Mutant Dominant Class ---------------- Mutant | -10/Materials Resources | -11 -10 ----------- Run | Yrd Mat Matter Collected 459 | 208 251 Remotely . | . . Salvage Created 349 | . 349 Parts 31 | . 31 Haulers Intercepted 1 | . 1 Recyclers Shooed . | . . Parts Field Recycled . | . . Retrieved Matter . | . . Parts Self-Destructed . | . . Prevented . | . . Kills | -11 -10 ------- Run | Yrd Mat Combat Hostiles Destroyed 10 | . 10 Guns 5 | . 5 Cannons 3 | . 3 AOE 2 | . 2 Classes Destroyed 4 | . 4 Builder 3 | . 3 Hauler 1 | . 1 Swarmer 5 | . 5 Grunt 5 | . 5 Best Kill Streak 5 | . 5 Combat Bots Only 3 | . 3 Max Kills in Single Turn 4 | . 4 Gunslinging . | . . Exploded 2 | . 2 Melee . | . . Uniques/NPCs Destroyed . | . . Combat | -11 -10 -------- Run | Yrd Mat Hostile Shots Fired 89 | . 89 Missed 15 | . 15 Damage Taken 963 | . 963 Core 260 | . 260 Absorbed by Shields . | . . Core Remaining (%) 100 | 100 . Volleys Fired 49 | . 49 Largest 2 | . 2 Hottest 90 | . 90 Shots Fired 84 | . 84 Gun 71 | . 71 Cannon 12 | . 12 Launcher 1 | . 1 Special . | . . Kinetic 41 | . 41 Thermal 42 | . 42 Explosive 1 | . 1 Electromagnetic . | . . Robot Hit Streak 5 | . 5 Robot Miss Streak 4 | . 4 Penetration Max . | . . Secondary Targets . | . . Shots Hit Robots 50 | . 50 Core Hits 23 | . 23 Critical Kills . | . . Critical Parts Destroyed 1 | . 1 Critical Strikes 2 | . 2 Burn 1 | . 1 Smash 1 | . 1 Melee Attacks 5 | . 5 Impact 5 | . 5 Slashing . | . . Piercing . | . . Sneak Attacks 1 | . 1 Combat Hostiles . | . . Follow-up Attacks . | . . Damage Inflicted 783 | . 783 Guns 411 | . 411 Cannons 141 | . 141 Explosions 195 | . 195 Melee 36 | . 36 Ramming . | . . Kinetic 221 | . 221 Thermal 331 | . 331 Explosive 195 | . 195 Electromagnetic . | . . Impact 36 | . 36 Slashing . | . . Piercing . | . . Highest Corruption . | . . Average Corruption . | . . Corruption Purged . | . . Corruption Blocked . | . . Overload Shots . | . . Overflow Damage 64 | . 64 Projectiles . | . . Explosions 28 | . 28 Melee 36 | . 36 Knockbacks . | . . Impact . | . . Kinetic . | . . Secondary . | . . Self-Inflicted Damage . | . . Shots . | . . Rammed . | . . Targets Rammed . | . . Kicked . | . . Crushed . | . . Highest Temperature 369 | . 369 Average Temperature 139 | . 139 Received Heat Transfer 378 | . 378 Effects 1 | . 1 Energy Bleed 1 | . 1 Siege Activations . | . . Robots Corrupted . | . . Combat Hostiles . | . . Parts Fried . | . . Impact Corruptions 1 | . 1 Robots Melted . | . . Combat Hostiles . | . . Parts Melted 1 | . 1 Heat Transferred 890 | . 890 Parts Sabotaged . | . . Parts Stolen . | . . Parts Stripped . | . . Power Chain Reactions . | . . Alert | -11 -10 ------- Run | Yrd Mat Peak Influence 270 | . 270 Initial . | . . Average 92 | . 108 Maximum Alert Level 1 | . 1 Low Security (%) 83 | 100 80 Level 1 16 | . 19 Level 2 . | . . Level 3 . | . . Level 4 . | . . Level 5 . | . . High Security . | . . Max Security . | . . Squads Dispatched 2 | . 2 Investigation 1 | . 1 Extermination . | . . Reinforcement 1 | . 1 Assault . | . . Garrison . | . . Intercept . | . . Searches Triggered . | . . Construction Impeded . | . . Haulers Reinforced . | . . Active Scanning Responses . | . . Cargo Convoy Interrupts . | . . Stealth | -11 -10 --------- Run | Yrd Mat Distress Signals 3 | . 3 Communications Jammed . | . . Distress Signals . | . . Times Spotted 19 | . 19 Peak Tracking Total 5 | . 5 Tactical Retreats . | . . Traps | -11 -10 ------- Run | Yrd Mat Traps Triggered 1 | . 1 Indirectly . | . . Trap Hack Attempts . | . . Triggered . | . . Disarmed . | . . Reprogrammed . | . . Reused . | . . Traps Extracted . | . . Installed . | . . Triggered . | . . Machines | -11 -10 ---------- Run | Yrd Mat Machines Disabled . | . . Max in Single Turn . | . . Machines Repaired . | . . Machines Dismantled . | . . Machines Sabotaged . | . . Overloaded Fab Kills . | . . Hacking | -11 -10 --------- Run | Yrd Mat Machines Accessed 1 | . 1 Terminals . | . . Fabricators . | . . Repair Stations . | . . Recycling Units 1 | . 1 Scanalyzers . | . . Garrison Access . | . . Total Hacks 3 | . 3 Successful 1 | . 1 Failed 2 | . 2 Catastrophic . | . . Database Lockouts . | . . Manual . | . . Terminals . | . . Fabricators . | . . Repair Stations . | . . Recycling Units 3 | . 3 Scanalyzers . | . . Garrison Access . | . . Terminal Hacks . | . . Fabricator Hacks . | . . Repair Station Hacks . | . . Recycling Unit Hacks 1 | . 1 Retrieve Components 1 | . 1 Scanalyzer . | . . Garrison Access Hacks . | . . Unauthorized Hacks . | . . Terminals . | . . Fabricators . | . . Repair Stations . | . . Recycling Units . | . . Scanalyzers . | . . Garrison Access . | . . Data Cores Recovered . | . . Used . | . . Hacking Detections 1 | . 1 Full Trace Events 1 | . 1 Feedback Events . | . . Feedback Blocked . | . . Robot Schematics Acquired . | . . Robots Built . | . . Authchips . | . . Time . | . . Total Robot Build Rating . | . . Part Schematics Acquired . | . . Parts Built . | . . Authchips . | . . Time . | . . Total Part Build Rating . | . . Parts Repaired . | . . Time . | . . Parts Recycled . | . . Recycled Matter . | . . Retrieved Matter . | . . Retrieved Components 9 | . 9 Parts Scanalyzed . | . . Part Schematics Acquired . | . . Parts Damaged . | . . Bothacking | -11 -10 ------------ Run | Yrd Mat Used RIF Installer . | . . Robots Hacked . | . . Non-combat . | . . Combat . | . . Robot Hacks Applied . | . . Relay Couplers Released . | . . Fabnet Peak Effective % . | . . Robots Rewired . | . . Allies Hacked . | . . Hacks Repelled . | . . Allies | -11 -10 -------- Run | Yrd Mat Total Allies . | . . Largest Group . | . . Highest-Rated Group . | . . Highest-Rated Ally . | . . Total Orders . | . . Ally Attacks . | . . Total Damage . | . . Kills . | . . Allies Corrupted . | . . Allies Melted . | . . Intel | -11 -10 ------- Run | Yrd Mat Robot Analysis Total . | . . Derelict Logs Recovered . | . . Drone Launches . | . . Drone Recoveries . | . . Exploration | -11 -10 ------------- Run | Yrd Mat Turns Passed 512 | 78 434 Spaces Moved 232 | 47 185 Core 7 | 6 1 Treads 80 | 41 39 Legs 145 | . 145 Wheels . | . . Hover . | . . Flight . | . . Fastest Speed 50 | 50 120 Average Speed 139 | 145 138 Slowest Speed 260 | 160 260 Overloaded Moves . | . . Propulsion Burnouts . | . . Robots Hopped . | . . Cave-ins Triggered . | . . Exploration Rate (%) 19 | 4 35 Regions Visited 1 Branch Regions . Pre-discovered Areas . | . . Known Exits Taken . | . . Unknown Exits Taken 1 | 1 . Scrap Searched . | . . Spaces Dug 2 | . 2 Terrain Destroyed 4 | . 4 Melee 2 | . 2 Projectile . | . . AOE 2 | . 2 Terrain Rammed . | . . Walls Destroyed . | . . Machines Disabled . | . . Actions | -11 -10 --------- Run | Yrd Mat Total 332 | 54 278 Wait 9 | . 9 Move 231 | 46 185 Hop . | . . Pick Up 15 | 2 13 Fast Attach 9 | 6 3 Attach 2 | . 2 Detach . | . . Swap 6 | . 6 Drop 6 | . 6 Fire 49 | . 49 Melee 5 | . 5 Ram . | . . Kick . | . . Crush . | . . Escape Stasis . | . . Rewire . | . . Trap . | . . Miscellaneous . | . . Route ------- -11/Scrapyard -10/Materials (discovered 1 exit: [*Min]) History --------- Turn | Location | Event 18 | -11/Scrapyard | Discovered new exit (range 15) 79 | -11/Scrapyard | Entered Materials 206 | -10/Materials | Core integrity fell below 50% 244 | -10/Materials | Lost 4 parts (1p2n1w) 361 | -10/Materials | Core integrity fell below 20% 481 | -10/Materials | Discovered new exit (range 6) 513 | -10/Materials | Destroyed by G-34 Mercenary with Small Laser Last Messages --------------- 00426_ U-05 Engineer lays Concrete. 00427_ R-06 Scavenger collects Lgt. Cannon. 00427_ U-05 Engineer lays Concrete. 00429_ M-13 Machinist repairs U-05 Engineer. 00429_ K-01 Serf collects debris. 00429_ U-05 Engineer lays Concrete. 00433_ K-01 Serf collects debris. 00445_ R-06 Scavenger collects Welding Torch. 00447_ K-01 Serf collects debris. 00461_ Dropped Sml. Storage Unit. 00481_ EXIT=FOUND 00484_ W-16 Scout sends out distress signal. 00486_ Sneak attack on U-05 Engineer. 00486_ U-05 Engineer suffers critical hit (Smash). 00486_ Destroyed Welding Torch. 00486_ U-05 Engineer system corrupted by crushing effect. 00489_ U-05 Engineer builds a Wall. 00501_ Aluminum Leg destroyed. Map ----- +----------------------------------------------------+ | ????????# # ## # # """ + ### | | ????????######## ## # # / # ## | | ???????????????# ## ############ ## | | ???????????????# ### ########### # | | ???????????????# #?# + # | | ???????????????# #?### ###+##### ! +[ | | ???????????????# ####### %% ### ### # | | ???????????????# *% ######## | | ???????????????# T ] # # | | ???????????????# = = # ## | | ???????????????########### * | =% + #? | | ?????????????????????????## #|########## #? | | ?????????????????########## #######????# #? | | ?????????????????# ! # # #????# #? | | ?????????????????# #^^ # #????# #? | | ?????????????????# """ # # """ #????########? | | ?????????????????# """"" # # """ #????????????? | | ?????????????????#! """"" # # """ #????????????? | | ?????????????????# """"" # # #????????????? | | ?????????????????# """ # # """ #????????????? | | ?????????????????# / + """ #????????????? | | ?????????????????########## # """ #????????????? | | ???????????###+### ## # #????????????? | | ?????????? kk k# #????????????? | | ????????? < # #????????????? | | ?????????? @ u #######????????????? | | ?????????? # # ????????????? | | ??????????? ?# "|"!" # g ????????? | | ??????????? ???#""|"!""# ?????????? | | ???????????? ????######### u #########?????????? | | ????????????????????????? #?????????????????? | | ????????????????????????? #?????????????????? | | ???????????????????????? ?????????????????? | | ???????????????????????? ????????????????? | | ???????????????????????? ???????????????? | | ?????????????????????????# ####??????????????? | | ?????????????????????????? #?????????????????? | | ?????????????????????????? #?????????????????? | | ?????????????????????????? ??????????????????? | | ?????????????????????????? ????????????????????? | | ?????????????????????????????????????????????????? | | ?????????????????????????????????????????????????? | | ?????????????????????????????????????????????????? | | ?????????????????????????????????????????????????? | | ?????????????????????????????????????????????????? | | ?????????????????????????????????????????????????? | | ?????????????????????????????????????????????????? | | ?????????????????????????????????????????????????? | | ?????????????????????????????????????????????????? | | ?????????????????????????????????????????????????? | +----------------------------------------------------+ Best States ------------- Heat Dissipation 35 Energy Generation 10 Energy Capacity 250 Matter Stores 300 Matter Capacity 300 Sight Range 16 Terrain Scan Density 10 Evasion (%) 55 Recoil Reduction 2 Item Schematics ----------------- None Robot Schematics ------------------ None Fabricated ------------ Nothing Alien Tech Used ----------------- None Achievements -------------- None Challenges ------------ None Game ------ Seed NuclearFluxLeg Manual? 0 Play Time 00:07:40 Cumulative 162.2 hours Start 2024.05.06 @ 00:16:20 End 2024.05.06 @ 00:20:41 Sessions 1 Manual Loads 0 Difficulty Rogue Special Mode None Game No. 185 Rogue 185 Adventurer 0 Explorer 0 Win Type - Total 0 Types 0/0/0/0/0/0/0/0/0 Lore% 38 Gallery% 62 Achievement% 42 Wizard Run 0 Options --------- Layout 1 ASCII 0 Keyboard 1 Movement Vi Keybinds 0 Fullscreen 1 Font 24/Smallcaps Map View 50x35 Zoom Use 0% Tactical HUD 1 Map Filters NONE Filters NONE Steam 1 RUN: 47b5a4f7-5c03-4e80-93a7-7ed1fb0f7f9f